fUSD/lending_fUSD_20250530
["ID","MTS","AMOUNT","RATE_DAILY","PERIOD"]
[363156113,1748603457414,-151.0,0.000221,7]
[363156115,1748603457423,-151.0,0.000221,7]
[363156117,1748603457433,-151.0,0.000221,7]
[363156119,1748603457445,-306.85622533,0.000221,2]
[363156121,1748603457455,-378.178813,0.000221,7]
[363156123,1748603457464,-378.178813,0.000221,7]
[363156125,1748603457473,-945.206834,0.000221,7]
[363156127,1748603457483,-277.820894,0.000221,7]
[363156129,1748603457492,-35000.0,0.000221,2]
[363156131,1748603457502,-151.0,0.000221,7]
[363156133,1748603457512,-151.0,0.000221,7]
[363156136,1748603457522,-945.861267,0.000221,7]
[363156137,1748603457533,-945.861267,0.000221,7]
[363156140,1748603457543,-4257.016718,0.000221,7]
[363156142,1748603457552,-4257.016718,0.000221,7]
[363156144,1748603457562,-151.0,0.00022164,7]
[363156146,1748603457572,-151.0,0.00022164,7]
[363156148,1748603457582,-2510.69853194,0.00022164,2]
[363156150,1748603457591,-2500.0,0.00022164,2]
[363156152,1748603457601,-2500.0,0.00022164,2]
[363156154,1748603457610,-500.0,0.00022164,2]
[363156156,1748603457620,-325.70065088,0.00022181,2]
[363156158,1748603457630,-300.0,0.0002219,2]
[363156160,1748603457639,-300.0,0.0002219,2]
[363156162,1748603457648,-300.0,0.0002219,2]
[363156164,1748603457658,-300.0,0.0002219,2]
[363156166,1748603457667,-300.0,0.0002219,2]
[363156168,1748603457677,-300.0,0.0002219,2]
[363156170,1748603457687,-300.0,0.0002219,2]
[363156172,1748603457696,-182.952023,0.00022191,7]
[363156175,1748603457706,-151.0,0.00022191,7]
[363156177,1748603457716,-151.0,0.00022191,7]
[363156179,1748603457726,-151.0,0.00022191,7]
[363156181,1748603457736,-151.0,0.00022191,7]
[363156183,1748603457746,-181.449963,0.00022191,7]
[363156185,1748603457755,-181.449963,0.00022191,7]
[363156187,1748603457765,-151.0,0.00022191,7]
[363156189,1748603457774,-151.0,0.00022191,7]
[363156191,1748603457784,-153.144144,0.00022191,7]
[363156193,1748603457795,-151.0,0.00022191,7]
[363156194,1748603457805,-151.0,0.00022191,7]
[363156196,1748603457815,-257.533634,0.00022191,7]
[363156198,1748603457825,-155.221073,0.00022191,7]
[363156201,1748603457837,-151.0,0.00022191,7]
[363156203,1748603457847,-151.0,0.00022191,7]
[363156205,1748603457858,-151.0,0.00022191,7]
[363156207,1748603457868,-151.0,0.00022191,7]
[363156209,1748603457877,-151.0,0.00022191,7]
[363156211,1748603457887,-151.0,0.00022191,7]
[363156213,1748603457897,-151.0,0.00022191,7]
[363156215,1748603457906,-205.156674,0.00022191,7]
[363156217,1748603457916,-151.0,0.00022191,7]
[363156218,1748603457926,-151.0,0.00022191,7]
[363156221,1748603457936,-151.0,0.00022191,7]
[363156223,1748603457946,-151.0,0.00022191,7]
[363156225,1748603457956,-151.0,0.00022191,7]
[363156227,1748603457967,-151.0,0.00022191,7]
[363156229,1748603457977,-151.0,0.00022191,7]
[363156231,1748603457987,-286.967984,0.00022191,7]
[363156233,1748603457997,-151.0,0.00022191,7]
[363156235,1748603458006,-151.0,0.00022191,7]
[363156237,1748603458016,-151.0,0.00022191,7]
[363156239,1748603458026,-151.0,0.00022191,7]
[363156241,1748603458035,-151.0,0.00022191,7]
[363156243,1748603458046,-151.0,0.00022191,7]
[363156245,1748603458056,-151.0,0.00022191,7]
[363156246,1748603458067,-151.0,0.00022191,7]
[363156247,1748603458078,-151.0,0.00022191,7]
[363156248,1748603458088,-151.0,0.00022191,7]
[363156249,1748603458098,-151.0,0.00022191,7]
[363156250,1748603458107,-1528.077058,0.00022191,7]
[363156251,1748603458118,-420.0,0.00022191,2]
[363156252,1748603458128,-420.0,0.00022191,2]
[363156253,1748603458139,-420.0,0.00022191,2]
[363156254,1748603458149,-420.0,0.00022191,2]
[363156256,1748603458160,-583.04,0.00022191,2]
[363156258,1748603458170,-420.0,0.00022191,2]
[363156260,1748603458180,-527.12,0.00022191,2]
[363156263,1748603458189,-420.0,0.00022191,2]
[363156264,1748603458199,-641.69,0.00022191,2]
[363156267,1748603458209,-420.0,0.00022191,2]
[363156269,1748603458218,-293.174764,0.00022191,7]
[363156271,1748603458227,-293.174764,0.00022191,7]
[363156273,1748603458236,-293.174764,0.00022191,7]
[363156275,1748603458246,-420.0,0.00022191,2]
[363156277,1748603458256,-293.174764,0.00022191,7]
[363156279,1748603458266,-293.174764,0.00022191,7]
[363156281,1748603458275,-293.174764,0.00022191,7]
[363156283,1748603458285,-420.0,0.00022191,2]
[363156285,1748603458294,-293.174764,0.00022191,7]
[363156287,1748603458303,-293.174764,0.00022191,7]
[363156289,1748603458312,-151.0,0.00022191,7]
[363156291,1748603458322,-151.0,0.00022191,7]
[363156293,1748603458331,-151.0,0.00022191,7]
[363156295,1748603458340,-461.93,0.00022191,2]
[363156297,1748603458349,-434.08,0.00022191,2]
[363156299,1748603458359,-420.0,0.00022191,2]
[363156301,1748603458369,-420.0,0.00022191,2]
[363156303,1748603458378,-838.0,0.00022191,2]
[363156305,1748603458388,-1151.5,0.00022191,2]
[363156307,1748603458397,-571.14,0.00022191,2]
[363156309,1748603458407,-420.0,0.00022191,2]
[363156311,1748603458416,-420.0,0.00022191,2]
[363156313,1748603458425,-378.178813,0.00022191,7]
[363156315,1748603458435,-518.49939484,0.00022191,2]
[363156317,1748603458447,-378.178813,0.00022191,7]
[363156319,1748603458458,-378.178813,0.00022191,7]
[363156321,1748603458467,-378.178813,0.00022191,7]
[363156323,1748603458477,-378.178813,0.00022191,7]
[363156325,1748603458487,-378.178813,0.00022191,7]
[363156327,1748603458495,-415.1143761,0.00022191,2]
[363156329,1748603458504,-536.32,0.00022191,2]
[363156331,1748603458514,-460.29,0.00022191,2]
[363156333,1748603458523,-945.206834,0.00022191,7]
[363156335,1748603458533,-945.206834,0.00022191,7]
[363156337,1748603458542,-945.206834,0.00022191,7]
[363156339,1748603458551,-945.206834,0.00022191,7]
[363156341,1748603458560,-420.0,0.00022191,2]
[363156343,1748603458569,-945.206834,0.00022191,7]
[363156345,1748603458578,-945.206834,0.00022191,7]
[363156347,1748603458587,-420.0,0.00022191,2]
[363156349,1748603458596,-420.0,0.00022191,2]
[363156350,1748603458606,-160.1604322,0.00022191,2]
[363156351,1748603458615,-793.83,0.00022191,2]
[363156352,1748603458624,-420.0,0.00022191,2]
[363156353,1748603458634,-548.3,0.00022191,2]
[363156354,1748603458643,-170.355757,0.00022191,7]
[363156355,1748603458653,-890.97,0.00022191,2]
[363156356,1748603458663,-170.355757,0.00022191,7]
[363156357,1748603458672,-170.355757,0.00022191,7]
[363156358,1748603458682,-170.355757,0.00022191,7]
[363156359,1748603458691,-170.355757,0.00022191,7]
[363156360,1748603458700,-170.355757,0.00022191,7]
[363156361,1748603458709,-170.355757,0.00022191,7]
[363156362,1748603458719,-170.355757,0.00022191,7]
[363156363,1748603458729,-682.2,0.00022191,2]
[363156364,1748603458740,-420.0,0.00022191,2]
[363156365,1748603458750,-420.0,0.00022191,2]
[363156366,1748603458760,-420.0,0.00022191,2]
[363156367,1748603458770,-420.0,0.00022191,2]
[363156368,1748603458780,-420.0,0.00022191,2]
[363156369,1748603458790,-606.04,0.00022191,2]
[363156370,1748603458800,-632.87,0.00022191,2]
[363156371,1748603458810,-451.14,0.00022191,2]
[363156372,1748603458820,-257.13696924,0.00022191,2]
[363156373,1748603458830,-151.0,0.00022191,7]
[363156374,1748603458840,-1290.05,0.00022191,2]
[363156375,1748603458851,-151.0,0.00022191,7]
[363156376,1748603458861,-220.947744,0.00022191,7]
[363156377,1748603458870,-629.25,0.00022191,2]
[363156378,1748603458879,-661.345713,0.00022191,7]
[363156379,1748603458889,-661.345713,0.00022191,7]
[363156380,1748603458899,-661.345713,0.00022191,7]
[363156381,1748603458909,-463.91,0.00022191,2]
[363156382,1748603458923,-661.345713,0.00022191,7]
[363156383,1748603458933,-661.345713,0.00022191,7]
[363156384,1748603458942,-661.345713,0.00022191,7]
[363156385,1748603458951,-1109.75,0.00022191,2]
[363156386,1748603458961,-420.0,0.00022191,2]
[363156387,1748603458971,-420.0,0.00022191,2]
[363156388,1748603458980,-420.0,0.00022191,2]
[363156389,1748603458989,-561.18,0.00022191,2]
[363156390,1748603458999,-1214.43,0.00022191,2]
[363156391,1748603459009,-500.0,0.00022191,2]
[363156392,1748603459018,-420.0,0.00022191,2]
[363156393,1748603459027,-420.0,0.00022191,2]
[363156394,1748603459037,-420.0,0.00022191,2]
[363156395,1748603459047,-420.0,0.00022191,2]
[363156396,1748603459057,-420.0,0.00022191,2]
[363156397,1748603459067,-420.0,0.00022191,2]
[363156398,1748603459077,-718.36,0.00022191,2]
[363156399,1748603459086,-420.0,0.00022191,2]
[363156400,1748603459096,-1024.46,0.00022191,2]
[363156401,1748603459106,-420.0,0.00022191,2]
[363156402,1748603459115,-690.23,0.00022191,2]
[363156403,1748603459125,-444.28073629,0.00022191,2]
[363156404,1748603459134,-420.0,0.00022191,2]
[363156405,1748603459144,-420.0,0.00022191,2]
[363156406,1748603459155,-420.0,0.00022191,2]
[363156407,1748603459165,-420.0,0.00022191,2]
[363156408,1748603459175,-568.46,0.00022191,2]
[363156409,1748603459185,-420.0,0.00022191,2]
[363156410,1748603459195,-420.0,0.00022191,2]
[363156411,1748603459205,-945.19,0.00022191,2]
[363156412,1748603459214,-420.0,0.00022191,2]
[363156413,1748603459223,-420.0,0.00022191,2]
[363156414,1748603459233,-700.42,0.00022191,2]
[363156415,1748603459242,-420.0,0.00022191,2]
[363156416,1748603459252,-495.4,0.00022191,2]
[363156417,1748603459262,-420.0,0.00022191,2]
[363156418,1748603459271,-914.58,0.00022191,2]
[363156419,1748603459282,-707.45,0.00022191,2]
[363156420,1748603459291,-420.0,0.00022191,2]
[363156421,1748603459301,-300.0,0.00022191,2]
[363156422,1748603459311,-599.57,0.00022191,2]
[363156423,1748603459321,-868.33,0.00022191,2]
[363156424,1748603459331,-420.0,0.00022191,2]
[363156425,1748603459425,-794.91,0.00022191,2]
[363156426,1748603459435,-852.26,0.00022191,2]
[363156427,1748603459448,-731.99,0.00022191,2]
[363156428,1748603459458,-857.45,0.00022191,2]
[363156429,1748603459467,-1661.63,0.00022191,2]
[363156430,1748603459477,-420.0,0.00022191,2]
[363156431,1748603459488,-421.66,0.00022191,2]
[363156432,1748603459498,-420.0,0.00022191,2]
[363156433,1748603459507,-1418.78,0.00022191,2]
[363156434,1748603459517,-420.0,0.00022191,2]
[363156435,1748603459529,-420.0,0.00022191,2]
[363156436,1748603459539,-929.58,0.00022191,2]
[363156437,1748603459549,-471.01,0.00022191,2]
[363156438,1748603459559,-584.83,0.00022191,2]
[363156439,1748603459568,-1247.14,0.00022191,2]
[363156440,1748603459578,-1980.11,0.00022191,2]
[363156441,1748603459587,-626.26,0.00022191,2]
[363156442,1748603459596,-420.0,0.00022191,2]
[363156443,1748603459607,-544.87,0.00022191,2]
[363156444,1748603459617,-420.0,0.00022191,2]
[363156445,1748603459626,-420.0,0.00022191,2]
[363156446,1748603459636,-500.0,0.00022191,2]
[363156447,1748603459645,-1188.87,0.00022191,2]
[363156448,1748603459655,-467.8,0.00022191,2]
[363156449,1748603459665,-420.0,0.00022191,2]
[363156450,1748603459675,-1129.7,0.00022191,2]
[363156451,1748603459684,-1362.92,0.00022191,2]
[363156452,1748603459694,-420.0,0.00022191,2]
[363156453,1748603459704,-507.12,0.00022191,2]
[363156454,1748603459713,-628.69,0.00022191,2]
[363156455,1748603459722,-616.07,0.00022191,2]
[363156456,1748603459732,-420.0,0.00022191,2]
[363156457,1748603459742,-691.42,0.00022191,2]
[363156458,1748603459751,-420.0,0.00022191,2]
[363156459,1748603459761,-420.0,0.00022191,2]
[363156460,1748603459771,-739.92,0.00022191,2]
[363156461,1748603459780,-420.0,0.00022191,2]
[363156462,1748603459789,-424.12,0.00022191,2]
[363156463,1748603459799,-420.0,0.00022191,2]
[363156465,1748603459808,-420.0,0.00022191,2]
[363156466,1748603459818,-840.59,0.00022191,2]
[363156467,1748603459827,-771.7,0.00022191,2]
[363156468,1748603459837,-256.45,0.00022191,2]
[363156469,1748603459847,-420.0,0.00022191,2]
[363156470,1748603459858,-1015.42,0.00022191,2]
[363156471,1748603459867,-1334.27,0.00022191,2]
[363156472,1748603459877,-420.0,0.00022191,2]
[363156473,1748603459886,-420.0,0.00022191,2]
[363156474,1748603459895,-1205.13,0.00022191,2]
[363156475,1748603459905,-420.0,0.00022191,2]
[363156476,1748603459915,-420.0,0.00022191,2]
[363156477,1748603459925,-420.0,0.00022191,2]
[363156478,1748603459935,-420.0,0.00022191,2]
[363156479,1748603459945,-420.0,0.00022191,2]
[363156480,1748603459955,-420.0,0.00022191,2]
[363156481,1748603459964,-420.0,0.00022191,2]
[363156482,1748603459974,-1292.74,0.00022191,2]
[363156483,1748603459983,-1260.37,0.00022191,2]
[363156484,1748603459993,-420.0,0.00022191,2]
[363156485,1748603460003,-700.71,0.00022191,2]
[363156486,1748603460013,-151.0,0.00022191,7]
[363156487,1748603460023,-151.0,0.00022191,7]
[363156488,1748603460034,-707.64,0.00022191,2]
[363156489,1748603460044,-151.0,0.00022191,7]
[363156490,1748603460054,-535.73,0.00022191,2]
[363156491,1748603460064,-1324.65,0.00022191,2]
[363156492,1748603460075,-420.0,0.00022191,2]
[363156493,1748603460085,-211.22843,0.00022191,7]
[363156494,1748603460094,-211.22843,0.00022191,7]
[363156496,1748603460105,-211.22843,0.00022191,7]
[363156498,1748603460114,-1102.9,0.00022191,2]
[363156499,1748603460124,-420.0,0.00022191,2]
[363156500,1748603460132,-211.22843,0.00022191,7]
[363156501,1748603460142,-1074.25,0.00022191,2]
[363156502,1748603460151,-211.22843,0.00022191,7]
[363156503,1748603460161,-211.22843,0.00022191,7]
[363156504,1748603460171,-1426.93,0.00022191,2]
[363156505,1748603460180,-691.44,0.00022191,2]
[363156506,1748603460190,-420.0,0.00022191,2]
[363156507,1748603460200,-420.0,0.00022191,2]
[363156508,1748603460209,-1186.28,0.00022191,2]
[363156509,1748603460220,-616.38,0.00022191,2]
[363156510,1748603460230,-420.0,0.00022191,2]
[363156511,1748603460239,-151.0,0.00022191,7]
[363156512,1748603460248,-151.0,0.00022191,7]
[363156513,1748603460258,-420.0,0.00022191,2]
[363156514,1748603460267,-740.92,0.00022191,2]
[363156515,1748603460277,-151.0,0.00022191,7]
[363156516,1748603460287,-151.0,0.00022191,7]
[363156517,1748603460296,-420.0,0.00022191,2]
[363156518,1748603460305,-516.79,0.00022191,2]
[363156519,1748603460315,-502.51,0.00022191,2]
[363156520,1748603460326,-448.5,0.00022191,2]
[363156521,1748603460335,-420.0,0.00022191,2]
[363156522,1748603460346,-543.82,0.00022191,2]
[363156523,1748603460358,-1748.44,0.00022191,2]
[363156524,1748603460367,-620.29,0.00022191,2]
[363156525,1748603460378,-1165.15,0.00022191,2]
[363156526,1748603460387,-461.47,0.00022191,2]
[363156527,1748603460397,-621.0,0.00022191,2]
[363156528,1748603460406,-420.0,0.00022191,2]
[363156529,1748603460415,-420.0,0.00022191,2]
[363156530,1748603460425,-1070.58,0.00022191,2]
[363156531,1748603460434,-320.205292,0.00022191,7]
[363156532,1748603460448,-320.205292,0.00022191,7]
[363156533,1748603460457,-420.0,0.00022191,2]
[363156534,1748603460467,-320.205292,0.00022191,7]
[363156535,1748603460476,-516.92,0.00022191,2]
[363156536,1748603460487,-476.99,0.00022191,2]
[363156537,1748603460497,-320.205292,0.00022191,7]
[363156538,1748603460506,-420.0,0.00022191,2]
[363156539,1748603460516,-320.205292,0.00022191,7]
[363156540,1748603460527,-320.205292,0.00022191,7]
[363156541,1748603460537,-1051.91,0.00022191,2]
[363156542,1748603460546,-420.0,0.00022191,2]
[363156543,1748603460556,-420.0,0.00022191,2]
[363156545,1748603460565,-838.05,0.00022191,2]
[363156547,1748603460575,-825.95,0.00022191,2]
[363156549,1748603460584,-151.0,0.00022191,7]
[363156551,1748603460593,-151.0,0.00022191,7]
[363156553,1748603460602,-459.25,0.00022191,2]
[363156555,1748603460611,-151.0,0.00022191,7]
[363156557,1748603460620,-993.78,0.00022191,2]
[363156559,1748603460630,-737.77,0.00022191,2]
[363156561,1748603460639,-178.7772338,0.00022191,2]
[363156563,1748603460648,-420.0,0.00022191,2]
[363156565,1748603460657,-336.05402412,0.00022191,2]
[363156567,1748603460666,-151.0,0.00022191,7]
[363156569,1748603460676,-163.794712,0.00022191,7]
[363156570,1748603460685,-600.1,0.00022191,2]
[363156572,1748603460695,-783.73,0.00022191,2]
[363156574,1748603460704,-420.0,0.00022191,2]
[363156576,1748603460713,-420.0,0.00022191,2]
[363156578,1748603460723,-320.61966133,0.00022191,2]
[363156580,1748603460732,-816.65,0.00022191,2]
[363156582,1748603460742,-417.92,0.00022191,2]
[363156584,1748603460751,-420.0,0.00022191,2]
[363156587,1748603460761,-420.0,0.00022191,2]
[363156589,1748603460771,-420.0,0.00022191,2]
[363156590,1748603460780,-420.0,0.00022191,2]
[363156592,1748603460790,-679.62,0.00022191,2]
[363156595,1748603460799,-420.0,0.00022191,2]
[363156596,1748603460808,-420.0,0.00022191,2]
[363156598,1748603460818,-576.4,0.00022191,2]
[363156600,1748603460827,-420.0,0.00022191,2]
[363156602,1748603460837,-420.0,0.00022191,2]
[363156605,1748603460847,-426.54,0.00022191,2]
[363156606,1748603460856,-499.2,0.00022191,2]
[363156608,1748603460866,-531.58,0.00022191,2]
[363156611,1748603460876,-420.0,0.00022191,2]
[363156612,1748603460886,-669.54,0.00022191,2]
[363156614,1748603460895,-667.5,0.00022191,2]
[363156616,1748603460905,-341.66212311,0.00022191,2]
[363156618,1748603460915,-567.56,0.00022191,2]
[363156620,1748603460925,-420.0,0.00022191,2]
[363156622,1748603460934,-420.0,0.00022191,2]
[363156624,1748603460945,-420.26,0.00022191,2]
[363156626,1748603460955,-1211.78,0.00022191,2]
[363156629,1748603460968,-420.0,0.00022191,2]
[363156631,1748603460977,-420.0,0.00022191,2]
[363156633,1748603460987,-160.0,0.00022191,2]
[363156634,1748603460997,-1970.29,0.00022191,2]
[363156636,1748603461007,-523.52,0.00022191,2]
[363156639,1748603461017,-420.0,0.00022191,2]
[363156641,1748603461028,-739.57,0.00022191,2]
[363156642,1748603461037,-420.0,0.00022191,2]
[363156643,1748603461047,-420.0,0.00022191,2]
[363156644,1748603461056,-420.0,0.00022191,2]
[363156645,1748603461066,-420.0,0.00022191,2]
[363156646,1748603461075,-1089.08,0.00022191,2]
[363156647,1748603461085,-2173.48,0.00022191,2]
[363156648,1748603461095,-420.0,0.00022191,2]
[363156649,1748603461106,-420.0,0.00022191,2]
[363156650,1748603461115,-427.19,0.00022191,2]
[363156651,1748603461125,-420.0,0.00022191,2]
[363156652,1748603461136,-420.0,0.00022191,2]
[363156654,1748603461146,-709.59,0.00022191,2]
[363156655,1748603461156,-530.53,0.00022191,2]
[363156657,1748603461167,-420.0,0.00022191,2]
[363156658,1748603461177,-516.0,0.00022191,2]
[363156659,1748603461187,-420.0,0.00022191,2]
[363156660,1748603461196,-420.0,0.00022191,2]
[363156661,1748603461205,-420.0,0.00022191,2]
[363156662,1748603461214,-420.0,0.00022191,2]
[363156663,1748603461224,-420.0,0.00022191,2]
[363156664,1748603461233,-420.0,0.00022191,2]
[363156665,1748603461242,-420.0,0.00022191,2]
[363156666,1748603461251,-580.04,0.00022191,2]
[363156667,1748603461261,-1511.1,0.00022191,2]
[363156668,1748603461272,-1473.72,0.00022191,2]
[363156669,1748603461281,-420.0,0.00022191,2]
[363156670,1748603461291,-420.0,0.00022191,2]
[363156671,1748603461300,-420.0,0.00022191,2]
[363156672,1748603461309,-1168.01,0.00022191,2]
[363156673,1748603461319,-554.87,0.00022191,2]
[363156674,1748603461330,-420.0,0.00022191,2]
[363156675,1748603461340,-420.0,0.00022191,2]
[363156676,1748603461350,-420.0,0.00022191,2]
[363156677,1748603461360,-420.0,0.00022191,2]
[363156678,1748603461370,-420.0,0.00022191,2]
[363156679,1748603461379,-566.44,0.00022191,2]
[363156680,1748603461389,-420.0,0.00022191,2]
[363156681,1748603461399,-204.73550305,0.00022191,2]
[363156682,1748603461409,-1000.9,0.00022191,2]
[363156683,1748603461418,-1677.39,0.00022191,2]
[363156684,1748603461428,-482.28,0.00022191,2]
[363156685,1748603461437,-1228.12,0.00022191,2]
[363156686,1748603461450,-1163.07,0.00022191,2]
[363156687,1748603461460,-1236.91,0.00022191,2]
[363156688,1748603461469,-420.0,0.00022191,2]
[363156689,1748603461479,-766.15,0.00022191,2]
[363156690,1748603461489,-945.861267,0.00022191,7]
[363156691,1748603461499,-420.0,0.00022191,2]
[363156692,1748603461509,-945.861267,0.00022191,7]
[363156693,1748603461519,-945.861267,0.00022191,7]
[363156694,1748603461530,-666.65,0.00022191,2]
[363156695,1748603461540,-945.861267,0.00022191,7]
[363156696,1748603461550,-420.0,0.00022191,2]
[363156697,1748603461560,-420.0,0.00022191,2]
[363156698,1748603461570,-1012.0,0.00022191,2]
[363156699,1748603461579,-420.0,0.00022191,2]
[363156700,1748603461589,-487.02,0.00022191,2]
[363156701,1748603461599,-848.39,0.00022191,2]
[363156702,1748603461610,-420.0,0.00022191,2]
[363156703,1748603461620,-420.0,0.00022191,2]
[363156704,1748603461630,-945.861267,0.00022191,7]
[363156705,1748603461640,-945.861267,0.00022191,7]
[363156706,1748603461650,-420.0,0.00022191,2]
[363156707,1748603461660,-1843.72,0.00022191,2]
[363156708,1748603461669,-431.71,0.00022191,2]
[363156709,1748603461678,-1438.95,0.00022191,2]
[363156710,1748603461688,-478.14,0.00022191,2]
[363156711,1748603461698,-1905.82,0.00022191,2]
[363156712,1748603461707,-1062.3,0.00022191,2]
[363156713,1748603461717,-627.67,0.00022191,2]
[363156714,1748603461727,-217.565645,0.00022191,7]
[363156716,1748603461737,-420.0,0.00022191,2]
[363156717,1748603461746,-217.565645,0.00022191,7]
[363156718,1748603461756,-465.71,0.00022191,2]
[363156719,1748603461765,-420.0,0.00022191,2]
[363156720,1748603461775,-217.565645,0.00022191,7]
[363156721,1748603461785,-1116.57,0.00022191,2]
[363156722,1748603461795,-420.0,0.00022191,2]
[363156723,1748603461805,-1812.72,0.00022191,2]
[363156724,1748603461815,-531.86,0.00022191,2]
[363156725,1748603461826,-533.86,0.00022191,2]
[363156726,1748603461836,-217.565645,0.00022191,7]
[363156727,1748603461846,-217.565645,0.00022191,7]
[363156728,1748603461857,-982.63,0.00022191,2]
[363156729,1748603461867,-420.0,0.00022191,2]
[363156730,1748603461878,-217.565645,0.00022191,7]
[363156731,1748603461888,-425.35899265,0.00022191,2]
[363156732,1748603461898,-843.0,0.00022191,2]
[363156733,1748603461908,-420.0,0.00022191,2]
[363156734,1748603461917,-661.87,0.00022191,2]
[363156735,1748603461928,-420.0,0.00022191,2]
[363156736,1748603461938,-165.686068,0.00022191,7]
[363156737,1748603461947,-165.686068,0.00022191,7]
[363156738,1748603461957,-165.686068,0.00022191,7]
[363156739,1748603461967,-672.03,0.00022191,2]
[363156740,1748603461977,-571.32,0.00022191,2]
[363156741,1748603461987,-165.686068,0.00022191,7]
[363156742,1748603461997,-165.686068,0.00022191,7]
[363156743,1748603462007,-420.0,0.00022191,2]
[363156744,1748603462017,-420.0,0.00022191,2]
[363156745,1748603462028,-165.686068,0.00022191,7]
[363156746,1748603462038,-167.23334487,0.00022191,2]
[363156747,1748603462048,-438.12,0.00022191,2]
[363156748,1748603462058,-1452.33,0.00022191,2]
[363156749,1748603462068,-420.0,0.00022191,2]
[363156750,1748603462079,-634.34,0.00022191,2]
[363156751,1748603462088,-160.0,0.00022191,2]
[363156752,1748603462099,-1084.5,0.00022191,2]
[363156753,1748603462111,-420.0,0.00022191,2]
[363156754,1748603462121,-693.3,0.00022191,2]
[363156755,1748603462131,-420.0,0.00022191,2]
[363156756,1748603462141,-533.08,0.00022191,2]
[363156757,1748603462151,-420.0,0.00022191,2]
[363156758,1748603462162,-741.42,0.00022191,2]
[363156759,1748603462171,-523.64,0.00022191,2]
[363156760,1748603462182,-420.0,0.00022191,2]
[363156761,1748603462192,-1364.86,0.00022191,2]
[363156762,1748603462201,-420.0,0.00022191,2]
[363156763,1748603462212,-420.0,0.00022191,2]
[363156764,1748603462222,-845.77,0.00022191,2]
[363156765,1748603462232,-420.0,0.00022191,2]
[363156766,1748603462242,-1306.89,0.00022191,2]
[363156767,1748603462252,-581.4,0.00022191,2]
[363156768,1748603462262,-630.41,0.00022191,2]
[363156769,1748603462274,-420.0,0.00022191,2]
[363156770,1748603462284,-864.61,0.00022191,2]
[363156771,1748603462294,-1419.5,0.00022191,2]
[363156772,1748603462303,-420.0,0.00022191,2]
[363156773,1748603462314,-223.904983,0.00022191,7]
[363156774,1748603462324,-865.14,0.00022191,2]
[363156775,1748603462334,-867.81,0.00022191,2]
[363156776,1748603462345,-134259.76,0.00022191,2]
[363156777,1748603462358,-160.0,0.00022191,2]
[363156778,1748603462368,-484.47,0.00022191,2]
[363156779,1748603462379,-420.0,0.00022191,2]
[363156780,1748603462389,-943.17,0.00022191,2]
[363156781,1748603462399,-2752.88,0.00022191,2]
[363156782,1748603462410,-426.85,0.00022191,2]